[Event "10th Cesme Open-A 2024"]
[Site "Cesme"]
[Date "2024.06.29"]
[Round "8"]
[White "Zerey, Demhat"]
[Black "Isik, Alparslan"]
[Result "0-1"]
[ECO "B13"]
[WhiteElo "2038"]
[BlackElo "2469"]
[Annotator "RC"]
[PlyCount "96"]
[EventDate "2024.06.23"]
[EventType "swiss"]
[EventCountry "TUR"]
[SourceTitle "playchess.com"]
[Source "ChessBase"]
[SourceQuality "1"]
[TimeControl "5400+30"]

1. d4 {[%emt 0:01:00]} d5 {[%emt 0:01:00]} 2. Bf4 {[%emt 0:00:30]} c5 {[%emt 0:00:30]} 3. e3 {[%emt 0:00:00]} cxd4 {[%emt 0:00:00]} 4. exd4 {[%emt 0:00:00]} Nc6 {[%emt 0:00:00]} 5. Nf3 {[%emt 0:00:30]} Bf5 {[%emt 0:00:00]} 6. c4 {[%emt 0:01:30]} Nf6 {[%emt 0:08:00]} 7. Nc3 {[%emt 0:03:30]} e6 {[%emt 0:01:30]} 8. c5 {[%emt 0:00:30]} Be7 {[%emt 0:01:30]} 9. Bb5 {[%emt 0:01:30]} Nd7 {[%emt 0:06:30]} 10. Ne5 {[%emt 0:13:30]} Ncxe5 {[%emt 0:20:30]} 11. Bxe5 {[%emt 0:00:30]} O-O {[%emt 0:00:30]} 12. Bg3 {[%emt 0:07:30]} Nxc5 {[%emt 0:01:30]} 13. dxc5 {[%emt 0:05:30]} d4 {[%emt 0:00:00]} 14. O-O {[%emt 0:29:30]} dxc3 {[%emt 0:00:00]} 15. bxc3 {[%emt 0:01:30]} Bxc5 {[%emt 0:00:30]} 16. Qf3 {[%emt 0:01:30]} Qe7 {[%emt 0:04:30]} 17. Rfd1 {[%emt 0:02:30]} Rad8 {[%emt 0:00:30]} 18. Rxd8 {[%emt 0:00:30]} Rxd8 {[%emt 0:00:00]} 19. Rd1 {[%emt 0:00:30]} h6 {[%emt 0:03:00]} 20. h3 {[%emt 0:01:30]} b6 {[%emt 0:07:30]} 21. a4 {[%emt 0:03:30]} a5 {[%emt 0:01:30]} 22. Rxd8+ {[%emt 0:04:30]} Qxd8 {[%emt 0:00:00]} 23. Qc6 {[%emt 0:02:14]} Bg6 {[%emt 0:00:00]} 24. Qe8+ {[%emt 0:02:04]} Qxe8 {[%emt 0:00:30]} 25. Bxe8 {[%emt 0:00:30]} Kf8 {[%emt 0:00:30]} 26. Bb5 {[%emt 0:00:30]} f6 {[%emt 0:00:30]} 27. Kf1 {[%emt 0:00:30]} Ke7 {[%emt 0:00:30]} 28. Ke2 {[%emt 0:00:30]} Bd6 {[%emt 0:04:30]} 29. f4 {[%emt 0:03:40]} Be4 {[%emt 0:00:30]} 30. Kf1 {[%emt 0:01:15]} Kd8 {[%emt 0:01:30]} 31. Bf2 {[%emt 0:00:30]} Bc5 {[%emt 0:00:30]} 32. Bxc5 {[%emt 0:00:30]} bxc5 {[%emt 0:00:30]} 33. g3 {[%emt 0:00:30]} Kc7 {[%emt 0:00:30]} 34. Ke2 {[%emt 0:00:30]} Bc6 {[%emt 0:00:30]} 35. c4 {[%emt 0:01:09]} Bg2 {[%emt 0:07:30]} 36. h4 {[%emt 0:00:30]} Kd6 {[%emt 0:00:30]} 37. Kf2 {[%emt 0:00:57]} Bb7 {[%emt 0:01:30]} 38. Ke2 {[%emt 0:02:56]} e5 {[%emt 0:00:30]} 39. Ke3 {[%emt 0:00:03]} Ke6 {[%emt 0:00:30]} 40. Be8 {[%emt 0:00:30]} Bc8 {[%emt 0:00:30]} 41. Ke4 {[%emt 0:00:30]} Bb7+ {[%emt 0:00:30]} 42. Ke3 {[%emt 0:00:30]} exf4+ {[%emt 0:05:30]} 43. gxf4 {[%emt 0:03:35]} g5 {[%emt 0:00:30]} 44. h5 {[%emt 0:01:06]} Kd6 {[%emt 0:01:30]} 45. Bg6 {[%emt 0:00:59]} Bc6 {[%emt 0:01:30]} 46. Bc2 {[%emt 0:00:01]} Ke6 {[%emt 0:00:00]} 47. Bd1 {[%emt 0:00:58]} Kf5 {[%emt 0:00:00]} 48. Bc2+ {[%emt 0:00:30]} Kg4 {[%emt 0:00:00]} 0-1